bitfinex-derivatives/quotes_SOLF0:USTF0_20250706
["timestamp","ask_amount","ask_price","bid_price","bid_amount"]
[1751803153384,13.60099045,147.91,147.84,240.34]
[1751803153588,4.77012874,147.9,147.84,240.34]
[1751803153786,9.47881052,147.95,147.84,240.34]
[1751803153985,18.2640017,147.94,147.84,240.34]
[1751803154185,18.2640017,147.93,147.84,240.34]
[1751803154386,13.60040233,147.92,147.84,240.34]
[1751803154589,13.60040233,147.91,147.84,240.34]
[1751803154790,4.76991884,147.9,147.84,240.34]
[1751803154990,9.47881052,147.95,147.84,240.34]
[1751803155186,18.26298523,147.94,147.84,240.34]
[1751803155387,13.59962898,147.93,147.84,240.34]
[1751803155581,13.59962898,147.92,147.84,240.34]
[1751803155788,13.59962898,147.91,147.84,240.34]
[1751803155986,9.47881052,147.94,147.84,240.34]
[1751803156187,13.598777,147.93,147.84,240.34]
[1751803156382,13.598777,147.92,147.84,240.34]
[1751803156682,13.598777,147.91,147.84,240.34]
[1751803156892,9.47881052,147.94,147.84,240.34]
[1751803157091,13.59833966,147.93,147.84,240.34]
[1751803157291,13.59833966,147.92,147.84,240.34]
[1751803157593,13.59833966,147.91,147.84,240.34]
[1751803157789,9.47881052,147.94,147.84,240.34]
[1751803157990,13.59774068,147.93,147.84,240.34]
[1751803158192,13.59774068,147.92,147.84,240.34]
[1751803158491,13.59774068,147.91,147.84,240.34]
[1751803158792,9.47881052,147.94,147.84,240.34]
[1751803158992,13.59690152,147.93,147.84,240.34]
[1751803159192,13.59690152,147.92,147.84,240.34]
[1751803159389,13.59690152,147.91,147.84,240.34]
[1751803159588,9.47881052,147.94,147.84,240.34]
[1751803159792,13.59637867,147.93,147.84,240.34]
[1751803160092,13.59637867,147.92,147.84,240.34]
[1751803160290,13.59637867,147.91,147.84,240.34]
[1751803160487,9.47881052,147.94,147.84,240.34]
[1751803160689,13.59589453,147.93,147.84,240.34]
[1751803160884,13.59589453,147.92,147.84,240.34]
[1751803161091,13.59589453,147.91,147.84,240.34]
[1751803161391,9.47881052,147.94,147.84,240.34]
[1751803161596,13.5954486,147.93,147.84,240.34]
[1751803161796,13.5954486,147.92,147.84,240.34]
[1751803161997,13.5954486,147.91,147.84,240.34]
[1751803162294,9.47881052,147.95,147.84,240.34]
[1751803162494,18.25683093,147.94,147.84,240.34]
[1751803162694,13.59503989,147.93,147.84,240.34]
[1751803162895,13.59503989,147.92,147.84,240.34]
[1751803163189,13.59503989,147.91,147.84,240.34]
[1751803163395,9.47881052,147.95,147.84,240.34]
[1751803163593,18.25631851,147.94,147.84,240.34]
[1751803163793,13.59466749,147.93,147.84,240.34]
[1751803163995,13.59466749,147.92,147.84,240.34]
[1751803164195,13.59466749,147.91,147.84,240.34]
[1751803164395,9.47881052,147.95,147.84,240.34]
[1751803164596,18.25586553,147.94,147.84,240.34]
[1751803164796,13.59434243,147.93,147.84,240.34]
[1751803165095,13.59434243,147.92,147.84,240.34]
[1751803165397,13.59489463,147.91,147.84,240.34]
[1751803165598,4.76807828,147.9,147.84,240.34]
[1751803165800,17.2669764,147.96,147.84,240.34]
[1751803166004,9.4664182,147.94,147.84,240.34]
[1751803166297,18.25826408,147.93,147.84,240.34]
[1751803166498,13.59612203,147.92,147.84,240.34]
[1751803166697,13.59612203,147.91,147.84,240.34]
[1751803166898,9.4664182,147.95,147.84,240.34]
[1751803167098,18.26118763,147.94,147.84,240.34]
[1751803167295,13.59836033,147.93,147.84,240.34]
[1751803167501,13.59836033,147.92,147.84,240.34]
[1751803167800,4.7688261,147.91,147.84,240.34]
[1751803168000,9.4664182,147.95,147.84,240.34]
[1751803168200,18.30144283,147.94,147.84,240.34]
[1751803168395,13.63731275,147.93,147.84,240.34]
[1751803168600,13.63731275,147.92,147.84,240.34]
[1751803168800,4.7701585,147.91,147.84,240.34]
[1751803169100,9.4664182,147.95,147.84,240.34]
[1751803169300,18.30382874,147.94,147.84,240.34]
[1751803169495,13.63922919,147.93,147.85,62.0]
[1751803169695,13.63922919,147.92,147.85,62.0]
[1751803169899,4.77063864,147.91,147.85,62.0]
[1751803170197,9.4664182,147.95,147.85,62.0]
[1751803170400,18.30594518,147.94,147.85,62.0]
[1751803170600,9.4664182,147.95,147.85,62.0]
[1751803170601,13.64075583,147.93,147.85,62.0]
[1751803170898,13.64075583,147.92,147.84,240.34]
[1751803171202,13.64075583,147.91,147.84,240.34]
[1751803171395,9.4664182,147.95,147.84,240.34]
[1751803171595,18.31051697,147.94,147.84,240.34]
[1751803171794,13.64469682,147.93,147.84,240.34]
[1751803171994,13.64469682,147.92,147.84,240.34]
[1751803172194,13.64469682,147.91,147.84,240.34]
[1751803172395,9.4664182,147.95,147.84,240.34]
[1751803172598,18.33658256,147.94,147.84,240.34]
[1751803172799,13.65690886,147.93,147.84,240.34]
[1751803172998,13.65690886,147.92,147.84,240.34]
[1751803173199,13.65690886,147.91,147.84,240.34]
[1751803173402,4.7850356,147.9,147.84,240.34]
[1751803173601,9.4664182,147.95,147.84,240.34]
[1751803173795,18.33454902,147.94,147.84,240.34]
[1751803173996,13.67171272,147.93,147.84,302.34]
[1751803174302,13.67171272,147.92,147.84,302.34]
[1751803174494,13.67171272,147.91,147.84,302.34]
[1751803174693,4.7850356,147.9,147.84,302.34]
[1751803174891,9.4664182,147.94,147.84,302.34]
[1751803175092,18.33609861,147.93,147.84,240.34]
[1751803175297,13.67264758,147.92,147.84,240.34]
[1751803175496,13.67264758,147.91,147.84,240.34]
[1751803175694,4.78546164,147.9,147.84,240.34]
[1751803175890,4.78546164,147.89,147.84,240.34]
[1751803176098,9.4664182,147.93,147.84,240.34]
[1751803176300,18.33997334,147.92,147.84,240.34]
[1751803176502,13.67518874,147.91,147.84,240.34]
[1751803176702,13.67518874,147.9,147.84,240.34]
[1751803176905,4.78706877,147.89,147.84,240.34]
[1751803177097,9.4664182,147.93,147.84,240.34]
[1751803177296,18.34290036,147.92,147.84,240.34]
[1751803177501,13.6772275,147.91,147.84,240.34]
[1751803177799,13.6772275,147.9,147.84,240.34]
[1751803178000,4.78798031,147.89,147.84,240.34]
[1751803178199,9.4664182,147.93,147.84,240.34]
[1751803178400,18.34747619,147.92,147.84,240.34]
[1751803178701,13.68079408,147.91,147.84,240.34]
[1751803178898,13.68079408,147.9,147.84,240.34]
[1751803179102,4.78901602,147.89,147.84,240.34]
[1751803179401,9.4664182,147.93,147.84,240.34]
[1751803179598,18.35111643,147.92,147.84,240.34]
[1751803179795,13.68335329,147.91,147.84,240.34]
[1751803180002,13.68335329,147.9,147.84,240.34]
[1751803180202,13.68335329,147.89,147.84,240.34]
[1751803180395,9.4664182,147.93,147.84,240.34]
[1751803180598,18.35486243,147.92,147.84,240.34]
[1751803180799,13.68591473,147.91,147.84,240.34]
[1751803180999,13.68591473,147.9,147.84,240.34]
[1751803181200,13.68591473,147.89,147.84,240.34]
[1751803181401,9.4664182,147.93,147.84,240.34]
[1751803181702,18.33172057,147.92,147.84,240.34]
[1751803181906,13.67550463,147.91,147.84,240.34]
[1751803182103,13.67550463,147.9,147.84,240.34]
[1751803182304,13.67550463,147.89,147.84,240.34]
[1751803182505,9.4664182,147.93,147.84,240.34]
[1751803182804,18.33278317,147.92,147.84,240.34]
[1751803183005,13.67629773,147.91,147.84,240.34]
[1751803183305,13.67629773,147.9,147.84,240.34]
[1751803183500,13.67629773,147.89,147.84,240.34]
[1751803183702,9.4664182,147.93,147.84,240.34]
[1751803183904,18.33394716,147.92,147.84,240.34]
[1751803184105,13.67716588,147.91,147.84,240.34]
[1751803184305,13.67716588,147.9,147.84,240.34]
[1751803184608,13.67716588,147.89,147.84,240.34]
[1751803184799,9.4664182,147.93,147.84,240.34]
[1751803184997,18.33523326,147.92,147.84,240.34]
[1751803185201,13.67812448,147.91,147.84,240.34]
[1751803185402,13.67812448,147.9,147.84,240.34]
[1751803185596,9.4664182,147.93,147.84,240.34]
[1751803185597,13.67812448,147.89,147.84,240.34]
[1751803185803,9.4664182,147.93,147.84,240.34]
[1751803186105,18.3354069,147.92,147.84,240.34]
[1751803186303,13.67825429,147.91,147.84,240.34]
[1751803186606,13.67825429,147.9,147.84,240.34]
[1751803186807,4.78141831,147.89,147.84,240.34]
[1751803187008,9.4664182,147.94,147.84,240.34]
[1751803187308,18.33561486,147.93,147.84,240.34]
[1751803187609,18.33561486,147.92,147.84,240.34]
[1751803187804,13.6784102,147.91,147.84,240.34]
[1751803188006,13.6784102,147.9,147.84,240.34]
[1751803188303,4.78147175,147.89,147.84,240.34]
[1751803188606,9.4664182,147.94,147.84,240.34]
[1751803188808,18.33068244,147.93,147.84,240.34]
[1751803189008,18.33068244,147.92,147.84,240.34]
[1751803189212,13.67349138,147.91,147.84,240.34]
[1751803189410,13.67351426,147.9,147.84,240.34]
[1751803189611,4.78560357,147.89,147.84,240.34]
[1751803189909,9.4664182,147.94,147.84,240.34]
[1751803190111,18.33087893,147.93,147.84,240.34]
[1751803190409,18.33087893,147.92,147.84,240.34]
[1751803190609,13.67364665,147.91,147.84,240.34]
[1751803190812,13.67364665,147.9,147.84,240.34]
[1751803191010,4.78562307,147.89,147.84,240.34]
[1751803191210,9.4664182,147.94,147.84,240.34]
[1751803191413,18.33107894,147.93,147.84,240.34]
[1751803191601,18.33107894,147.92,147.84,240.34]
[1751803191801,13.67380585,147.91,147.84,240.34]
[1751803192112,4.78566501,147.9,147.84,240.34]
[1751803192308,4.78566501,147.89,147.84,240.34]
[1751803192611,9.4664182,147.94,147.84,240.34]
[1751803192806,18.36426536,147.93,147.84,240.34]
[1751803193003,18.36426536,147.92,147.84,240.34]
[1751803193207,13.6940155,147.91,147.84,240.34]
[1751803193506,4.79680026,147.9,147.84,240.34]
[1751803193707,4.79680026,147.89,147.84,240.34]
[1751803193902,9.4664182,147.94,147.84,240.34]
[1751803194111,18.36424342,147.93,147.84,240.34]
[1751803194311,18.36424342,147.92,147.84,240.34]
[1751803194512,13.693996,147.91,147.84,240.34]
[1751803194712,4.79679775,147.9,147.84,240.34]
[1751803194911,4.79679775,147.89,147.84,240.34]
[1751803195112,9.4664182,147.94,147.84,240.34]
[1751803195313,18.36423488,147.93,147.84,240.34]
[1751803195612,13.56743609,147.92,147.84,240.34]
[1751803195914,13.69399103,147.91,147.84,240.34]
[1751803196109,13.69398665,147.9,147.84,240.34]
[1751803196302,4.79680338,147.89,147.84,240.34]
[1751803196507,9.4664182,147.93,147.84,240.34]
[1751803196806,18.34013361,147.92,147.84,240.34]
[1751803197008,13.68285546,147.91,147.84,240.34]
[1751803197308,13.68285546,147.9,147.84,240.34]
[1751803197508,4.78567021,147.89,147.84,240.34]
[1751803197710,9.4664182,147.93,147.84,240.34]
[1751803197908,18.36271194,147.92,147.84,240.34]
[1751803198109,13.70542239,147.91,147.84,240.34]
[1751803198405,13.70542239,147.9,147.84,240.34]
[1751803198608,4.78568192,147.89,147.84,240.34]
[1751803198811,9.4664182,147.93,147.84,240.34]
[1751803199011,18.36275656,147.92,147.84,240.34]
[1751803199210,13.70545212,147.91,147.84,240.34]
[1751803199509,13.70545212,147.9,147.84,240.34]
[1751803199710,4.78569723,147.89,147.84,240.34]
[1751803199911,9.4664182,147.93,147.84,240.34]
[1751803200111,18.36273367,147.92,147.84,240.34]
[1751803200310,13.70543279,147.91,147.84,240.34]
[1751803200518,13.70543279,147.9,147.84,240.34]
[1751803200710,4.78569356,147.89,147.85,45.88]
[1751803200910,9.4664182,147.93,147.85,45.88]
[1751803201212,18.36265531,147.92,147.85,45.88]
[1751803201404,9.4664182,147.93,147.85,45.88]
[1751803201405,13.70537056,147.91,147.85,45.88]
[1751803201605,13.70537056,147.9,147.85,45.88]
[1751803201812,4.78567699,147.89,147.85,45.88]
[1751803202012,9.4664182,147.93,147.85,45.88]
[1751803202315,18.36273279,147.92,147.85,45.88]
[1751803202617,13.70542444,147.91,147.85,45.88]
[1751803202813,13.70542444,147.9,147.85,45.88]
[1751803203005,4.78570124,147.89,147.85,45.88]
[1751803203205,9.4664182,147.93,147.85,45.88]
[1751803203412,18.34859583,147.92,147.85,45.88]
[1751803203608,13.705444,147.91,147.85,45.88]
[1751803203803,4.78571989,147.9,147.85,45.88]
[1751803204011,9.4664182,147.96,147.85,45.88]
[1751803204210,27.81256975,147.95,147.85,45.88]
[1751803204514,9.4664182,147.93,147.86,45.88]
[1751803204715,13.70355121,147.92,147.86,45.88]
[1751803204916,13.70355121,147.91,147.86,45.88]
[1751803205116,13.70380169,147.9,147.86,45.88]
[1751803205317,9.4664182,147.93,147.86,45.88]
[1751803205616,13.70367833,147.92,147.86,45.88]
[1751803205817,13.70367833,147.91,147.86,45.88]
[1751803206020,13.70367833,147.9,147.86,45.88]
[1751803206216,9.48945085,147.94,147.86,45.88]
[1751803206516,13.70306221,147.93,147.86,45.88]
[1751803206717,13.70306221,147.92,147.86,45.88]
[1751803206915,8.91769514,147.91,147.86,45.88]
[1751803207117,9.48945085,147.95,147.86,45.88]
[1751803207316,27.85625434,147.94,147.86,45.88]
[1751803207508,13.71130406,147.93,147.86,45.88]
[1751803207712,13.71130406,147.92,147.86,45.88]
[1751803208011,13.71130406,147.91,147.86,45.88]
[1751803208212,8.92632548,147.9,147.86,45.88]
[1751803208419,9.48945085,147.94,147.86,45.88]
[1751803208616,13.72206804,147.93,147.86,45.88]
[1751803208817,13.72206804,147.92,147.86,45.88]
[1751803209010,13.72206804,147.91,147.86,45.88]
[1751803209217,9.48945085,147.95,147.86,45.88]
[1751803209419,18.37594495,147.94,147.86,45.88]
[1751803209619,13.72116354,147.93,147.86,45.88]
[1751803209823,13.72116354,147.92,147.86,45.88]
[1751803210120,13.72116354,147.91,147.86,45.88]
[1751803210421,9.48945085,147.95,147.86,45.88]
[1751803210616,13.71947286,147.94,147.86,45.88]
[1751803210816,9.48945085,147.95,147.86,45.88]
[1751803210817,13.71947286,147.93,147.86,45.88]
[1751803211011,13.71947286,147.92,147.86,45.88]
[1751803211210,8.92464973,147.91,147.86,45.88]
[1751803211411,9.48945085,147.95,147.86,45.88]
[1751803211620,13.71730361,147.94,147.86,45.88]
[1751803211820,13.71730361,147.93,147.86,45.88]
[1751803212020,13.71730361,147.92,147.86,45.88]
[1751803212219,13.71730361,147.91,147.86,45.88]
[1751803212420,9.48535073,147.95,147.86,45.88]
[1751803212619,13.71749894,147.94,147.86,45.88]
[1751803212822,13.71749894,147.93,147.86,45.88]
[1751803213016,13.71749894,147.92,147.86,45.88]
[1751803213224,13.71749894,147.91,147.86,45.88]
[1751803213422,9.48535073,147.95,147.86,45.88]
[1751803213620,13.72603609,147.94,147.86,45.88]
[1751803213821,13.72603609,147.93,147.86,45.88]
[1751803214018,13.72603609,147.92,147.86,45.88]
[1751803214221,13.72603609,147.91,147.86,45.88]
[1751803214424,9.48535073,147.95,147.86,45.88]
[1751803214625,13.72537591,147.94,147.86,45.88]
[1751803214827,13.72537591,147.93,147.86,45.88]
[1751803215129,13.72537591,147.92,147.86,45.88]
[1751803215423,13.72537591,147.91,147.86,45.88]
[1751803215625,9.48535073,147.95,147.86,45.88]
[1751803215826,18.3776966,147.94,147.86,45.88]
[1751803216126,13.72475174,147.93,147.86,45.88]
[1751803216326,13.72475174,147.92,147.86,45.88]
[1751803216529,13.72475174,147.91,147.86,45.88]
[1751803216825,9.48535073,147.95,147.86,45.88]
[1751803217030,18.42509427,147.94,147.86,45.88]
[1751803217228,13.74642565,147.93,147.86,45.88]
[1751803217526,13.74642565,147.92,147.86,45.88]
[1751803217726,13.74608001,147.91,147.86,45.88]
[1751803218025,9.48339927,147.95,147.86,45.88]
[1751803218227,18.43355509,147.94,147.86,45.88]
[1751803218427,13.75509707,147.93,147.86,45.88]
[1751803218626,13.75509707,147.92,147.86,45.88]
[1751803218822,13.75509707,147.91,147.86,45.88]
[1751803219017,9.48339927,147.95,147.86,45.88]
[1751803219227,18.39963733,147.94,147.86,45.88]
[1751803219431,13.72137896,147.93,147.86,45.88]
[1751803219621,13.72137896,147.92,147.86,45.88]
[1751803219822,4.78189003,147.91,147.86,45.88]
[1751803220028,9.48339927,147.95,147.86,45.88]
[1751803220220,13.71998522,147.94,147.86,45.88]
[1751803220420,13.71998522,147.93,147.86,45.88]
[1751803220619,13.71998522,147.92,147.86,45.88]
[1751803220824,4.78134486,147.91,147.86,45.88]
[1751803221026,9.48339927,147.95,147.86,45.88]
[1751803221223,13.71902803,147.94,147.86,45.88]
[1751803221426,13.71902803,147.93,147.86,45.88]
[1751803221621,13.71902803,147.92,147.86,45.88]
[1751803221820,4.78103933,147.91,147.86,45.88]
[1751803222023,9.48339927,147.96,147.86,45.88]
[1751803222224,18.39554295,147.95,147.86,45.88]
[1751803222431,13.71834991,147.94,147.86,45.88]
[1751803222728,13.71834991,147.93,147.86,45.88]
[1751803222920,13.71834991,147.92,147.86,45.88]
[1751803223125,4.78078395,147.91,147.86,45.88]
[1751803223326,9.48339927,147.96,147.86,45.88]
[1751803223526,18.39416887,147.95,147.86,45.88]
[1751803223732,13.71734667,147.94,147.86,45.88]
[1751803223927,13.71734667,147.93,147.86,45.88]
[1751803224125,13.71734667,147.92,147.86,45.88]
[1751803224329,4.7804049,147.91,147.86,45.88]
[1751803224527,9.48339927,147.96,147.86,45.88]
[1751803224731,27.87710646,147.95,147.86,45.88]
[1751803224934,18.39380669,147.94,147.86,45.88]
[1751803225230,13.71700997,147.93,147.86,45.88]
[1751803225428,13.71700997,147.92,147.86,45.88]
[1751803225623,13.71700997,147.91,147.86,45.88]
[1751803225825,9.48339927,147.95,147.86,45.88]
[1751803226023,18.39432345,147.94,147.86,45.88]
[1751803226226,9.48339927,147.95,147.86,45.88]
[1751803226227,13.71746434,147.93,147.86,45.88]
[1751803226425,13.71746434,147.92,147.86,45.88]
[1751803226626,4.78045993,147.91,147.86,45.88]
[1751803226824,9.48339927,147.96,147.86,45.88]
[1751803227026,18.39429407,147.95,147.86,45.88]
[1751803227234,13.71744988,147.94,147.86,45.88]
[1751803227433,13.71744988,147.93,147.86,45.88]
[1751803227736,13.71744988,147.92,147.86,45.88]
[1751803228032,4.78042763,147.91,147.86,45.88]
[1751803228226,9.48339927,147.96,147.86,45.88]
[1751803228428,18.3699729,147.95,147.86,45.88]
[1751803228728,13.69325815,147.94,147.86,45.88]
[1751803228924,13.69325815,147.93,147.86,45.88]
[1751803229131,13.69325815,147.92,147.86,45.88]
[1751803229330,4.78029532,147.91,147.86,45.88]
[1751803229531,9.48339927,147.96,147.86,45.88]
[1751803229733,18.37020367,147.95,147.86,45.88]
[1751803229934,13.69335055,147.94,147.86,45.88]
[1751803230135,13.69335055,147.93,147.86,45.88]
[1751803230330,13.69335055,147.92,147.86,45.88]
[1751803230529,4.78043676,147.91,147.86,45.88]
[1751803230731,9.48339927,147.96,147.86,45.88]
[1751803231027,18.37050414,147.95,147.86,45.88]
[1751803231229,13.69357592,147.94,147.86,45.88]
[1751803231425,13.69357592,147.93,147.86,45.88]
[1751803231636,13.69357592,147.92,147.86,45.88]
[1751803231835,4.78051353,147.91,147.86,45.88]
[1751803232032,9.48339927,147.96,147.86,45.88]
[1751803232231,18.37094651,147.95,147.86,45.88]
[1751803232432,13.69390592,147.94,147.86,45.88]
[1751803232634,13.69390592,147.93,147.86,45.88]
[1751803232931,13.69390592,147.92,147.86,45.88]
[1751803233131,4.78062838,147.91,147.86,45.88]
[1751803233334,9.48339927,147.96,147.86,45.88]
[1751803233635,18.37190063,147.95,147.86,45.88]
[1751803233835,13.69470529,147.94,147.86,45.88]
[1751803234028,13.69470529,147.93,147.86,45.88]
[1751803234231,13.69470529,147.92,147.86,45.88]
[1751803234431,4.78078656,147.91,147.86,45.88]
[1751803234632,9.48339927,147.96,147.86,45.88]
[1751803234932,18.36125888,147.95,147.86,45.88]
[1751803235132,13.68403759,147.94,147.86,45.88]
[1751803235332,13.68403759,147.93,147.86,45.88]
[1751803235631,13.68403759,147.92,147.86,45.88]
[1751803235832,9.48339927,147.96,147.86,45.88]
[1751803236132,18.3512911,147.95,147.86,45.88]
[1751803236440,13.68417996,147.94,147.86,45.88]
[1751803236629,13.68417996,147.93,147.86,45.88]
[1751803236832,13.68417996,147.92,147.86,45.88]
[1751803237039,9.48339927,147.96,147.86,45.88]
[1751803237338,18.3630341,147.95,147.86,45.88]
[1751803237539,13.69588768,147.94,147.86,45.88]
[1751803237740,13.69588768,147.93,147.86,45.88]
[1751803238037,13.69588768,147.92,147.86,45.88]
[1751803238240,9.48339927,147.96,147.86,45.88]
[1751803238540,18.37675787,147.95,147.86,45.88]
[1751803238740,13.69649036,147.94,147.86,45.88]
[1751803238938,13.69649036,147.93,147.86,45.88]
[1751803239232,13.69649036,147.92,147.86,45.88]
[1751803239435,9.48339927,147.96,147.86,45.88]
[1751803239634,18.37731081,147.95,147.86,45.88]
[1751803239837,13.69692411,147.94,147.86,45.88]
[1751803240035,13.69692411,147.93,147.86,45.88]
[1751803240237,13.69692411,147.92,147.86,45.88]
[1751803240439,9.48339927,147.96,147.86,45.88]
[1751803240640,18.37744749,147.95,147.86,45.88]
[1751803240836,13.69717067,147.94,147.86,45.88]
[1751803241044,13.69717067,147.93,147.86,45.88]
[1751803241236,4.78086635,147.92,147.86,45.88]
[1751803241439,9.48339927,147.96,147.86,45.88]
[1751803241736,18.42570531,147.95,147.86,45.88]
[1751803241935,13.71946195,147.94,147.86,45.88]
[1751803242134,13.71946195,147.93,147.86,45.88]
[1751803242341,4.80315552,147.92,147.86,45.88]
[1751803242541,9.48339927,147.96,147.86,45.88]
[1751803242842,18.42610798,147.95,147.86,45.88]
[1751803243044,13.71978544,147.94,147.86,45.88]
[1751803243341,13.71978544,147.93,147.86,45.88]
[1751803243543,4.80323633,147.92,147.86,45.88]
[1751803243844,9.48339927,147.96,147.86,45.88]
[1751803244040,18.42670496,147.95,147.86,45.88]
[1751803244239,13.72025678,147.94,147.86,45.88]
[1751803244441,13.72025678,147.93,147.86,45.88]
[1751803244739,4.80336456,147.92,147.86,45.88]
[1751803245035,9.48339927,147.96,147.86,45.88]
[1751803245242,13.7301036,147.95,147.86,45.88]
[1751803245440,13.7301036,147.94,147.86,45.88]
[1751803245644,13.7301036,147.93,147.86,45.88]
[1751803245839,4.80353457,147.92,147.86,45.88]
[1751803246039,9.48339927,147.96,147.86,45.88]
[1751803246239,13.73015906,147.95,147.86,45.88]
[1751803246447,13.73015906,147.94,147.86,45.88]
[1751803246640,13.73015906,147.93,147.86,45.88]
[1751803246841,13.73015906,147.92,147.86,45.88]
[1751803247046,9.48339927,147.96,147.86,45.88]
[1751803247249,18.42485995,147.95,147.86,45.88]
[1751803247451,13.73091533,147.94,147.86,45.88]
[1751803247753,13.73091533,147.93,147.86,45.88]
[1751803247952,13.73091533,147.92,147.86,45.88]
[1751803248251,9.48339927,147.96,147.86,45.88]
[1751803248450,18.40592081,147.95,147.86,45.88]
[1751803248648,13.71111754,147.94,147.86,45.88]
[1751803248852,13.71111754,147.93,147.86,45.88]
[1751803249055,13.71111754,147.92,147.86,45.88]
[1751803249349,9.48339927,147.95,147.86,45.88]
[1751803249553,8.92876572,147.94,147.86,45.88]
[1751803249754,13.67538718,147.93,147.86,45.88]
[1751803250052,13.67538718,147.92,147.86,45.88]
[1751803250253,9.48339927,147.95,147.86,45.88]
[1751803250455,13.67758594,147.94,147.86,45.88]
[1751803250654,13.67758594,147.93,147.86,45.88]
[1751803250855,13.67758594,147.92,147.86,45.88]
[1751803251154,9.48339927,147.95,147.86,45.88]
[1751803251357,13.66929552,147.94,147.86,45.88]
[1751803251657,13.66929552,147.93,147.86,45.88]
[1751803251861,13.66929552,147.92,147.86,45.88]
[1751803252059,8.92080822,147.91,147.86,45.88]
[1751803252254,9.48339927,147.95,147.86,45.88]
[1751803252449,13.69076618,147.94,147.86,45.88]
[1751803252652,13.69076618,147.93,147.86,45.88]
[1751803252853,13.69076618,147.92,147.86,45.88]
[1751803253148,8.93101585,147.91,147.86,45.88]
[1751803253356,9.48339927,147.95,147.86,45.88]
[1751803253556,13.69167246,147.94,147.86,45.88]
[1751803253756,13.69167246,147.93,147.86,45.88]
[1751803254055,13.69167246,147.92,147.86,45.88]
[1751803254258,8.93161423,147.91,147.86,45.88]
[1751803254458,9.48339927,147.95,147.86,45.88]
[1751803254660,13.69219002,147.94,147.86,45.88]
[1751803254958,13.69219002,147.93,147.86,45.88]
[1751803255157,13.69219002,147.92,147.86,45.88]
[1751803255360,13.69219002,147.91,147.86,45.88]
[1751803255559,9.48339927,147.95,147.86,45.88]
[1751803255762,18.38993311,147.94,147.86,45.88]
[1751803256058,13.69246886,147.93,147.86,45.88]
[1751803256261,13.69246886,147.92,147.86,45.88]
[1751803256452,13.69246886,147.91,147.86,45.88]
[1751803256650,9.48339927,147.95,147.86,45.88]
[1751803256950,18.41467622,147.94,147.86,45.88]
[1751803257151,13.70402093,147.93,147.86,45.88]
[1751803257352,13.70402093,147.92,147.86,45.88]
[1751803257556,13.70402093,147.91,147.86,45.88]
[1751803257762,9.48339927,147.95,147.86,45.88]
[1751803257962,18.41926585,147.94,147.86,45.88]
[1751803258159,13.70850466,147.93,147.86,45.88]
[1751803258353,13.70850466,147.92,147.86,45.88]
[1751803258551,13.70850466,147.91,147.86,45.88]
[1751803258754,9.48339927,147.95,147.86,45.88]
[1751803258957,18.41971663,147.94,147.86,45.88]
[1751803259258,13.70883942,147.93,147.86,45.88]
[1751803259561,13.70883942,147.92,147.86,45.88]
[1751803259856,13.70883942,147.91,147.86,45.88]
[1751803260057,9.48339927,147.95,147.86,45.88]
[1751803260259,18.42019994,147.94,147.86,45.88]
[1751803260460,13.70919819,147.93,147.86,45.88]
[1751803260761,13.70919819,147.92,147.86,45.88]
[1751803260963,13.70919819,147.91,147.86,45.88]
[1751803261152,13.70919819,147.9,147.86,45.88]
[1751803261355,9.48339927,147.93,147.86,45.88]
[1751803261563,9.48339927,147.91,147.86,45.88]